{"text_format":"1","workbook":"xlsx","n_sheets":3,"sheets":["List1","List2","List3"],"not_rendered":{"charts":0,"images":0,"macros":0,"external_links":0,"defined_names":0,"comments":0,"pivot_tables":0},"unopened":[],"bounds":{"document_bytes":16777216,"sheet_cells":100000,"rows_first":2000,"rows_last":500,"rows_between":2000,"halvings":0,"cell_chars":16384,"cell_head_chars":4096},"cells_cut":0,"cells_raw":0,"read":"whole","date_system":"1900"}

{"sheet":"List1","index":0,"n_rows":35,"n_cols":10,"rows_kept":35,"cut":false,"hidden":false,"merged":[[1,1,1,9],[12,0,14,0],[12,9,14,9]]}
[]
[null,"Specifikace vzdělávacích aktivit"]
[]
[null,"Téma ","jednotka ","rozsah kurzu ve školicích dnech/ hodinách ","počet skupin, osob ","počet osob","počet jednotek ","cena jednotku v Kč bez DPH","cena za aktivitu v Kč bez DPH","Obsah kurzu - cíle"]
["1.","Aplikace zákona o obcích v praxi","školicí den","1 den/8 hodin",3,65,3,null,{"$f":"H5*G5","v":0},"Obsah kurzu je dán akreditací MVČR. "]
["2.","Norma - úprava písemností","školicí den","1 den/8 hodin",4,80,4,null,{"$f":"H6*G6","v":0},"Obsah kurzu je dán akreditací MVČR. "]
["3.","Pracovněprávní vztahy v úřadech ÚSC","školicí den","1 den/8 hodin",2,30,2,null,0,"Obsah kurzu je dán akreditací MVČR. "]
["4.","Zákon o svobodném přístupu k informacích a jeho aplikace v praxi","školicí den","1 den/8 hodin",2,35,2,null,0,"Obsah kurzu je dán akreditací MVČR. "]
["5.","Správní řád v praxi úzeních samospráv","školicí den","1 den/8 hodin",4,100,4,null,0,"Obsah kurzu je dán akreditací MVČR. "]
["6.","Registr smluv podle zákona č.340/2015","školicí den","1 den/8 hodin",3,65,3,null,0,"Obsah kurzu je dán akreditací MVČR. "]
["7.","Zákon o střetu zájmů","školicí den","1 den/8 hodin",2,40,2,null,0,"Obsah kurzu je dán akreditací MVČR. "]
["8.","Zákon č.255/2012 o kontrole","školicí den","2 dny/16 hodin ",2,30,4,null,0,"Obsah kurzu je dán akreditací MVČR. "]
["9.","Zákon o úřednících územních samosprávných celků v praxi","školicí den","2 dny/16 hodin ",2,40,4,null,{"$f":"H13*G13","v":0},"Obsah kurzu je dán akreditací MVČR. Součástí nabídkové ceny pak musí být kromě kurzů i zajištění dopravy z místa sídla zadavatele (MB) do místa konání kurzu, ubytování, stravování a návrat zpět do MB. Jednotka za ubytování a stravu obsahuje: 4 x coffeebreak (2x dopoledne, 2x odpoledne), 2x oběd, 1x večeře, 1x snídaně, ubytování 1 noc."]
[null,"doprava","doprava na školení a zpět","2 dny/16 hodin ",2,40,2,null,{"$f":"H14*G14","v":0}]
[null,"ubytování a strava","osoba za školení v obou dnech","2 dny/16 hodin ",2,40,40,null,{"$f":"H15*G15","v":0}]
["10.a","Výběrová řízení dle zákona o úřednících krok za krokem (dvoudenní)","školicí den","2 dny/16 hodin ",1,25,4,null,0,"Obsah kurzu je dán akreditací MVČR. "]
["10.b","Výběrová řízení dle zákona o úřednících krok za krokem (jednodenní)","školicí den","1 den/8 hodin",1,15,1,null,0,"Obsah kurzu je dán akreditací MVČR. "]
["11.","Veřejné zakázky malého rozsahu","školicí den","1 den/8 hodin",1,30,1,null,0,"Obsah kurzu je dán akreditací MVČR. "]
["12.","Přestupkové řízení","školicí den","1 den/8 hodin",1,30,1,null,0,"Obsah kurzu je dán akreditací MVČR. "]
["13.","Dopravní přestupky","školicí den","1 den/8 hodin",1,10,1,null,0,"Obsah kurzu je dán akreditací MVČR. "]
["14.","Rozpočet a rozpočtový proces obce","školicí den","1 den/8 hodin",1,15,1,null,0,"Obsah kurzu je dán akreditací MVČR. "]
["15.","Občanské průkazy a cestovní doklady","školicí den","1 den/8 hodin",1,10,1,null,0,"Obsah kurzu je dán akreditací MVČR. "]
["16.","Úřední deska a doručování písemností","školicí den","1 den/8 hodin",2,50,2,null,0,"Obsah kurzu je dán akreditací MVČR. "]
["17.","Práce s elektronickými digitálními dokumenty","školicí den","1 den/8 hodin",2,50,2,null,0,"Obsah kurzu je dán akreditací MVČR. "]
["18.","Kybernetická bezpečnost","školicí den","1 den/8 hodin",2,50,2,null,0,"Obsah kurzu je dán akreditací MVČR. "]
["19.","Správní řád pro OSPOD, OZ, TZ, tr. řád - dítě jako pachatel nebo oběť trestných činů","školicí den","1 den/8 hodin",1,15,1,null,0,"Obsah kurzu je dán akreditací MVČR. "]
["20.","Školský zákon","školicí den","1 den/8 hodin",1,15,1,null,0,"Obsah kurzu je dán akreditací MVČR. "]
["21.","Obec  nebo kraj jako příjemce nebo poskytovatel dotací","školicí den","1 den/8 hodin",1,10,1,null,0,"Obsah kurzu je dán akreditací MVČR. "]
["22.","Datové schránky","školicí den","1 den/8 hodin",1,15,1,null,0,"Obsah kurzu je dán akreditací MVČR. "]
["23.","Spisová služba a spisový řád","školicí den","1 den/8 hodin",2,30,2,null,0,"Obsah kurzu je dán akreditací MVČR. "]
["24.","Aktuální otázky v oblasti územního a stavebního řízení - workshop","školicí den","1 den/8 hodin",2,50,2,null,{"$f":"H31*G31","v":0},"Obsah kurzu je dán akreditací MVČR. "]
["25.","Ochrana osobních údajů a GDPR","školicí den","1 den/8 hodin",4,100,4,null,0,"Obsah kurzu je dán akreditací MVČR. "]
[null,"Celková nabídková cena celkem v Kč bez DPH",null,null,null,null,null,null,{"$f":"SUM(I5:I32)","v":0}]
[]
["* Dodavatelé vyplní pouze žlutě označené pole, jinak do tabulky nebudou zasahovat"]

{"sheet":"List2","index":1,"n_rows":0,"n_cols":0,"rows_kept":0,"cut":false,"hidden":false,"merged":[]}

{"sheet":"List3","index":2,"n_rows":0,"n_cols":0,"rows_kept":0,"cut":false,"hidden":false,"merged":[]}